fUST/lending_fUST_20260112
["ID","MTS","AMOUNT","RATE_DAILY","PERIOD"]
[401350492,1768150251434,-151.0,0.00030958,31]
[401350494,1768150251445,-152.205819,0.00030958,31]
[401350496,1768150251454,-151.0,0.00030958,31]
[401350498,1768150251463,-151.0,0.00030958,31]
[401350500,1768150251472,-160.986137,0.00030958,31]
[401350502,1768150251481,-2226.28,0.00030958,8]
[401350503,1768150251490,-6797.13,0.00030958,8]
[401350504,1768150251500,-151.0,0.00030958,31]
[401350505,1768150251509,-151.0,0.00030958,31]
[401350506,1768150251519,-151.0,0.00030958,31]
[401350507,1768150251527,-192.928076,0.00030958,31]
[401350508,1768150251537,-151.0,0.00030958,31]
[401350509,1768150251546,-4204.37,0.00030958,8]
[401350510,1768150251557,-151.0,0.00030958,31]
[401350511,1768150251567,-2536.91,0.00030958,8]
[401350512,1768150251577,-511.42,0.00030958,8]
[401350513,1768150251586,-556.3,0.00030991,4]
[401350514,1768150251596,-500.0,0.00031026,14]
[401350515,1768150251616,-1002.20117456,0.00031037,15]
[401350516,1768150251627,-151.0,0.000311,12]
[401350517,1768150251637,-258.38,0.00031125,2]
[401350518,1768150251647,-1023.0,0.00031162,2]
[401350519,1768150251658,-2571.94061875,0.0003119,2]
[401350520,1768150251667,-151.0,0.00031232,31]
[401350521,1768150251678,-151.0,0.00031232,31]
[401350522,1768150251687,-151.0,0.00031232,31]
[401350523,1768150251697,-500.0,0.00031232,8]
[401350524,1768150251707,-151.0,0.00031232,31]
[401350525,1768150251716,-151.0,0.00031232,31]
[401350526,1768150251726,-755.83,0.00031232,8]
[401350527,1768150251737,-151.0,0.00031232,31]
[401350528,1768150251746,-240.800368,0.00031232,31]
[401350529,1768150251756,-500.0,0.00031232,2]
[401350530,1768150251765,-2011.31,0.00031232,8]
[401350531,1768150251775,-2769.41,0.00031232,3]
[401350532,1768150251785,-2486.72,0.00031232,8]
[401350533,1768150251795,-16913.26,0.00031232,8]
[401350534,1768150251805,-4899.58,0.00031232,8]
[401350535,1768150251816,-3222.62,0.00031232,8]
[401350536,1768150251827,-2226.28,0.00031232,8]
[401350537,1768150251967,-6797.13,0.00031232,8]
[401350538,1768150251978,-4204.37,0.00031232,8]
[401350539,1768150251988,-2536.91,0.00031232,8]
[401350540,1768150251998,-511.42,0.00031232,8]
[401350542,1768150252007,-850.0,0.00031233,5]
[401350543,1768150252016,-1023.0,0.00031283,2]
[401350544,1768150252026,-151.0,0.000313,15]
[401350545,1768150252036,-1024.0,0.00031341,7]
[401350546,1768150252045,-1023.0,0.00031365,7]
[401350547,1768150252054,-1781.0,0.00031372,7]
[401350548,1768150252064,-783.22137859,0.00031409,2]
[401350549,1768150252073,-1781.0,0.0003144,2]
[401350550,1768150252082,-2571.94061875,0.00031458,2]
[401350551,1768150252092,-155.5739919,0.00031501,10]
[401350552,1768150252107,-500.0,0.00031506,8]
[401350553,1768150252117,-755.83,0.00031506,8]
[401350554,1768150252130,-500.0,0.00031506,2]
[401350555,1768150252140,-151.0,0.00031506,31]
[401350556,1768150252149,-2011.31,0.00031506,8]
[401350557,1768150252159,-151.0,0.00031506,31]
[401350558,1768150252169,-151.0,0.00031506,31]
[401350559,1768150252178,-151.0,0.00031506,31]
[401350560,1768150252188,-232.476622,0.00031506,31]
[401350562,1768150252199,-264.224,0.00031506,31]
[401350564,1768150252216,-264.224,0.00031506,31]
[401350566,1768150252226,-264.224,0.00031506,31]
[401350568,1768150252235,-264.224,0.00031506,31]
[401350570,1768150252245,-216.089114,0.00031506,31]
[401350571,1768150252254,-216.089114,0.00031506,31]
[401350572,1768150252264,-216.089114,0.00031506,31]
[401350573,1768150252273,-216.089114,0.00031506,31]
[401350574,1768150252283,-2769.41,0.00031506,3]
[401350575,1768150252293,-2486.72,0.00031506,8]
[401350576,1768150252302,-16913.26,0.00031506,8]
[401350577,1768150252312,-4899.58,0.00031506,8]
[401350578,1768150252322,-3222.62,0.00031506,8]
[401350580,1768150252331,-2226.28,0.00031506,8]
[401350582,1768150252341,-6797.13,0.00031506,8]
[401350583,1768150252351,-4204.37,0.00031506,8]
[401350584,1768150252361,-2536.91,0.00031506,8]
[401350585,1768150252372,-511.42,0.00031506,8]
[401350586,1768150252382,-601.4752142,0.00031507,30]
[401350587,1768150252391,-263.2879419,0.00031507,30]
[401350588,1768150252401,-153.0,0.00031507,30]
[401350589,1768150252410,-398.3026601,0.00031507,30]
[401350590,1768150252420,-153.0,0.00031507,30]
[401350592,1768150252430,-151.0,0.000316,13]
[401350594,1768150252440,-3983.3412936,0.00031606,2]
[401350596,1768150252449,-754.355704,0.00031644,30]
[401350599,1768150252459,-377.2725358,0.00031644,30]
[401350601,1768150252468,-377.0831682,0.00031644,30]
[401350602,1768150252477,-800.0,0.00031645,2]
[401350604,1768150252487,-1024.0,0.00031663,7]
[401350606,1768150252497,-500.0,0.0003167,120]
[401350607,1768150252507,-500.0,0.0003167,120]
[401350608,1768150252516,-500.0,0.0003167,120]
[401350609,1768150252525,-500.0,0.0003167,120]
[401350610,1768150252534,-500.0,0.0003167,120]
[401350611,1768150252544,-500.0,0.0003167,120]
[401350612,1768150252553,-500.0,0.0003167,120]
[401350613,1768150252563,-500.0,0.0003167,120]
[401350614,1768150252572,-500.0,0.0003167,120]
[401350615,1768150252581,-500.0,0.0003167,120]
[401350616,1768150252590,-500.0,0.0003167,120]
[401350617,1768150252600,-500.0,0.0003167,120]
[401350618,1768150252609,-500.0,0.0003167,120]
[401350619,1768150252619,-500.0,0.0003167,120]
[401350620,1768150252628,-500.0,0.0003167,120]
[401350621,1768150252638,-500.0,0.0003167,120]
[401350623,1768150252648,-500.0,0.0003167,120]
[401350625,1768150252657,-500.0,0.0003167,120]
[401350627,1768150252666,-500.0,0.0003167,120]
[401350629,1768150252676,-500.0,0.0003167,120]
[401350631,1768150252685,-500.0,0.0003167,120]
[401350633,1768150252694,-500.0,0.0003167,120]
[401350635,1768150252703,-500.0,0.0003167,120]
[401350637,1768150252712,-500.0,0.0003167,120]
[401350638,1768150252721,-500.0,0.0003167,120]
[401350639,1768150252730,-500.0,0.0003167,120]
[401350640,1768150252739,-500.0,0.0003167,120]
[401350641,1768150252748,-500.0,0.0003167,120]
[401350642,1768150252757,-500.0,0.0003167,120]
[401350643,1768150252767,-500.0,0.0003167,120]
[401350645,1768150252776,-500.0,0.0003167,120]
[401350647,1768150252785,-500.0,0.0003167,120]
[401350648,1768150252794,-500.0,0.0003167,120]
[401350649,1768150252804,-500.0,0.0003167,120]
[401350650,1768150252814,-500.0,0.0003167,120]
[401350651,1768150252827,-500.0,0.0003167,120]
[401350652,1768150252836,-500.0,0.0003167,120]
[401350653,1768150252846,-500.0,0.0003167,120]
[401350654,1768150252855,-500.0,0.0003167,120]
[401350655,1768150252866,-500.0,0.0003167,120]
[401350656,1768150252876,-500.0,0.0003167,120]
[401350657,1768150252886,-639.14,0.0003167,120]
[401350659,1768150252895,-500.0,0.0003167,120]
[401350661,1768150252905,-500.0,0.0003167,120]
[401350663,1768150252914,-1823.62075189,0.0003169,2]
[401350666,1768150252923,-1024.0,0.00031702,2]
[401350667,1768150252933,-46076.1364641,0.00031706,2]
[401350669,1768150252942,-1457.6254444,0.00031706,2]
[401350671,1768150252951,-800.0,0.00031729,2]
[401350673,1768150252960,-2571.94061875,0.0003175,2]
[401350674,1768150252970,-800.0,0.00031763,2]
[401350676,1768150252980,-500.0,0.0003178,8]
[401350677,1768150252990,-755.83,0.0003178,8]
[401350678,1768150252999,-500.0,0.0003178,2]
[401350679,1768150253009,-430.542144,0.0003178,31]
[401350680,1768150253020,-151.0,0.0003178,28]
[401350681,1768150253029,-430.542144,0.0003178,31]
[401350682,1768150253039,-430.542144,0.0003178,31]
[401350683,1768150253049,-430.542144,0.0003178,31]
[401350684,1768150253058,-2011.31,0.0003178,8]
[401350685,1768150253068,-2769.41,0.0003178,3]
[401350686,1768150253078,-2486.72,0.0003178,8]
[401350687,1768150253092,-16913.26,0.0003178,8]
[401350688,1768150253101,-4899.58,0.0003178,8]
[401350689,1768150253111,-3222.62,0.0003178,8]
[401350690,1768150253121,-2226.28,0.0003178,8]
[401350691,1768150253131,-6797.13,0.0003178,8]
[401350692,1768150253141,-4204.37,0.0003178,8]
[401350693,1768150253151,-2536.91,0.0003178,8]
[401350694,1768150253161,-511.42,0.0003178,8]
[401350695,1768150253171,-950.0,0.00031781,5]
[401350696,1768150253182,-2571.94061875,0.00031806,2]
[401350697,1768150253192,-629.16420479,0.00031829,2]
[401350698,1768150253202,-2000.0,0.00031873,7]
[401350699,1768150253212,-974.67463072,0.00031887,2]
[401350700,1768150253222,-156.0080173,0.0003189,30]
[401350701,1768150253231,-151.0,0.000319,17]
[401350702,1768150253242,-1023.0,0.00031933,2]
[401350703,1768150253252,-800.0,0.00031986,2]
[401350704,1768150253262,-14781.49,0.00032,2]
[401350705,1768150253272,-500.0,0.00032054,8]
[401350706,1768150253282,-755.83,0.00032054,8]
[401350707,1768150253292,-629.01311732,0.00032054,2]
[401350708,1768150253303,-2011.31,0.00032054,8]
[401350709,1768150253312,-2769.41,0.00032054,3]
[401350710,1768150253322,-2486.72,0.00032054,8]
[401350711,1768150253332,-16913.26,0.00032054,8]
[401350712,1768150253342,-4899.58,0.00032054,8]
[401350713,1768150253352,-3222.62,0.00032054,8]
[401350714,1768150253362,-2226.28,0.00032054,8]
[401350715,1768150253372,-6797.13,0.00032054,8]
[401350716,1768150253382,-4204.37,0.00032054,8]
[401350717,1768150253392,-2536.91,0.00032054,8]
[401350718,1768150253403,-511.42,0.00032054,8]
[401350719,1768150253412,-800.0,0.00032079,2]
[401350720,1768150253422,-1023.0,0.00032096,7]
[401350721,1768150253431,-151.0,0.000321,14]
[401350722,1768150253441,-2697.51,0.000321,14]
[401350723,1768150253451,-800.0,0.00032111,2]
[401350724,1768150253460,-2571.94061875,0.00032138,2]
[401350725,1768150253470,-800.0,0.00032193,2]
[401350726,1768150253479,-800.0,0.00032247,2]
[401350727,1768150253489,-1024.0,0.00032247,2]
[401350728,1768150253499,-1024.0,0.00032255,2]
[401350729,1768150253509,-1023.0,0.00032273,2]
[401350730,1768150253519,-151.0,0.00032328,31]
[401350731,1768150253529,-151.0,0.00032328,31]
[401350732,1768150253540,-151.0,0.00032328,31]
[401350733,1768150253550,-155.856993,0.00032328,31]
[401350734,1768150253560,-500.0,0.00032328,8]
[401350735,1768150253570,-755.83,0.00032328,8]
[401350736,1768150253580,-2011.31,0.00032328,8]
[401350737,1768150253591,-2769.41,0.00032328,3]
[401350738,1768150253602,-2486.72,0.00032328,8]
[401350739,1768150253612,-16913.26,0.00032328,8]
[401350740,1768150253622,-4899.58,0.00032328,8]
[401350741,1768150253632,-3222.62,0.00032328,8]
[401350742,1768150253641,-2226.28,0.00032328,8]
[401350743,1768150253651,-6797.13,0.00032328,8]
[401350744,1768150253661,-4204.37,0.00032328,8]
[401350745,1768150253673,-2536.91,0.00032328,8]
[401350746,1768150253683,-511.42,0.00032328,8]
[401350747,1768150253693,-1050.0,0.00032329,5]
[401350748,1768150253703,-153.0,0.00032329,30]
[401350749,1768150253712,-194.0180722,0.00032329,30]
[401350750,1768150253721,-194.0180722,0.00032329,30]
[401350751,1768150253730,-194.0180722,0.00032329,30]
[401350752,1768150253739,-2571.94061876,0.00032342,2]
[401350753,1768150253748,-5000.0,0.0003237,2]
[401350754,1768150253757,-151.0,0.000324,19]
[401350755,1768150253766,-3171.0,0.000324,120]
[401350756,1768150253775,-151.0,0.00032421,31]
[401350757,1768150253784,-151.0,0.00032421,31]
[401350758,1768150253794,-151.0,0.00032421,31]
[401350759,1768150253804,-291.03100379,0.0003246,2]
[401350760,1768150253814,-155.57399191,0.00032476,10]
[401350761,1768150253827,-800.0,0.00032477,2]
[401350762,1768150253836,-556.3,0.00032493,5]
[401350763,1768150253846,-800.0,0.00032498,2]
[401350764,1768150253855,-1023.0,0.00032543,2]
[401350765,1768150253864,-800.0,0.00032563,2]
[401350766,1768150253874,-800.0,0.00032577,2]
[401350767,1768150253884,-153.700094,0.00032602,31]
[401350768,1768150253896,-500.0,0.00032602,8]
[401350769,1768150253906,-755.83,0.00032602,8]
[401350770,1768150253917,-2011.31,0.00032602,8]
[401350771,1768150253927,-2769.41,0.00032602,3]
[401350772,1768150253937,-2486.72,0.00032602,8]
[401350773,1768150253947,-16913.26,0.00032602,8]
[401350774,1768150254049,-4899.58,0.00032602,8]
[401350775,1768150254061,-3222.62,0.00032602,8]
[401350776,1768150254071,-2226.28,0.00032602,8]
[401350777,1768150254081,-6797.13,0.00032602,8]
[401350778,1768150254091,-4204.37,0.00032602,8]
[401350779,1768150254101,-2536.91,0.00032602,8]
[401350780,1768150254114,-511.42,0.00032602,8]
[401350781,1768150254124,-180.0,0.00032658,54]
[401350782,1768150254134,-800.0,0.00032666,2]
[401350783,1768150254143,-3987.47170593,0.0003267,7]
[401350784,1768150254153,-6230.42454052,0.0003267,7]
[401350785,1768150254162,-8962.83952701,0.0003267,7]
[401350786,1768150254173,-500.0,0.0003267,14]
[401350787,1768150254183,-202.09107074,0.0003267,7]
[401350788,1768150254193,-166.0,0.0003267,7]
[401350789,1768150254203,-347.0,0.0003267,7]
[401350790,1768150254212,-347.0,0.0003267,7]
[401350791,1768150254222,-347.0,0.0003267,7]
[401350792,1768150254231,-347.0,0.0003267,7]
[401350793,1768150254241,-347.0,0.0003267,7]
[401350794,1768150254250,-347.0,0.0003267,7]
[401350795,1768150254260,-347.0,0.0003267,7]
[401350796,1768150254269,-151.0,0.0003267,7]
[401350797,1768150254278,-151.0,0.0003267,7]
[401350798,1768150254288,-336.0,0.0003267,7]
[401350799,1768150254297,-336.0,0.0003267,7]
[401350800,1768150254307,-336.0,0.0003267,7]
[401350801,1768150254316,-336.0,0.0003267,7]
[401350802,1768150254325,-336.0,0.0003267,7]
[401350803,1768150254335,-336.0,0.0003267,7]
[401350804,1768150254344,-336.0,0.0003267,7]
[401350805,1768150254353,-336.0,0.0003267,7]
[401350806,1768150254363,-336.0,0.0003267,7]
[401350807,1768150254373,-336.0,0.0003267,7]
[401350808,1768150254382,-336.0,0.0003267,7]
[401350809,1768150254391,-151.0,0.0003267,7]
[401350810,1768150254400,-151.0,0.0003267,7]
[401350811,1768150254410,-151.0,0.0003267,7]
[401350812,1768150254419,-151.0,0.0003267,7]
[401350813,1768150254429,-302.0,0.0003267,7]
[401350814,1768150254439,-479.36853141,0.0003267,7]
[401350815,1768150254449,-514.10050722,0.0003267,7]
[401350816,1768150254458,-1377537.33726074,0.0003267,2]
[401350817,1768150254576,-69231.6386534,0.0003267,2]
[401350818,1768150254587,-3128.14090283,0.0003267,2]
[401350819,1768150254599,-8938.44603011,0.0003267,2]
[401350820,1768150254674,-1343.28544515,0.00017917,2]
[401350821,1768150254684,-250.0,0.00024123,2]
[401350822,1768150254694,-502.56174809,0.00027397,8]
[401350823,1768150254851,-250.0,0.00024123,2]
[401350824,1768150254863,-250.0,0.00024123,2]
[401350825,1768150254872,-250.0,0.00024123,2]
[401350826,1768150254881,-64.38284821,0.00024123,2]
[401350827,1768150254894,-185.61715179,0.00024123,2]
[401350828,1768150254903,-255.89504653,0.00024123,2]
[401350829,1768150254913,-1.34439417,0.00027397,8]
[401350830,1768150254922,-511.2635964,0.00027397,8]
[401350831,1768150254932,-210.64083434,0.00027397,8]
[401350832,1768150254941,-887.78840295,0.0003267,2]
[401350833,1768150254968,-3781.88,0.0003267,2]
[401350834,1768150254979,-5151.81426372,0.0003267,2]
[401350835,1768150254991,-102294.3811683,0.0003267,2]
[401350836,1768150255054,-506.27876809,0.00027397,8]
[401350837,1768150255065,-500.0,0.00027397,8]
[401350838,1768150255075,-6267.71962522,0.0003267,2]
[401350839,1768150255087,-900.0,0.0003267,2]
[401350840,1768150255110,-2087.86023305,0.0003267,2]
[401350841,1768150255122,-30254.27635799,0.0003267,2]
[401350842,1768150295985,554.19183224,8.261e-05,2]
[401350843,1768150332538,10000.01,8.163e-05,2]
[401350844,1768150332564,10000.01,8.163e-05,2]
[401350845,1768150332591,10000.01,8.163e-05,2]
[401350846,1768150332617,10000.01,8.163e-05,2]
[401350847,1768150332642,10000.01,8.163e-05,2]
[401350848,1768150332667,10000.01,8.163e-05,2]
[401350849,1768150332690,10000.01,8.163e-05,2]
[401350850,1768150332713,10000.01,8.163e-05,2]
[401350851,1768150332737,10000.01,8.163e-05,2]
[401350852,1768150332761,10000.01,8.163e-05,2]
[401350868,1768150388367,-300.0,8.162e-05,2]
[401350869,1768150389272,-9208.31076601,8.163e-05,2]
[401350870,1768150389453,-10000.01,8.163e-05,2]
[401350887,1768150492225,10000.01,7.269e-05,2]
[401350888,1768150492245,10000.01,7.269e-05,2]
[401350889,1768150492267,10000.01,7.269e-05,2]
[401350890,1768150492288,6778.8596462,7.269e-05,2]
[401350892,1768150506073,-217.03686211,0.00036728,120]
[401350893,1768150506101,-234.21031159,0.00036728,120]
[401350894,1768150506126,-555.16857843,0.00036728,120]
[401350895,1768150506155,-837.6126,0.00036728,120]
[401350896,1768150506180,-3000.0,0.00036728,120]
[401350897,1768150506206,-294.30745,0.00036728,60]
[401350898,1768150506233,-788.72384,0.00036728,60]
[401350899,1768150506259,-788.72384,0.00036728,60]
[401350900,1768150506285,-788.72384,0.00036728,60]
[401350901,1768150506311,-788.72384,0.00036728,60]
[401350902,1768150506338,-788.72384,0.00036728,60]
[401350903,1768150506493,-211.32600751,0.00036728,120]
[401350904,1768150506520,-469.83185802,0.00036728,30]
[401350905,1768150506549,-537.62891444,0.00036728,60]
[401350906,1768150506575,-611.28813991,0.00036728,30]
[401350907,1768150506601,-279.94340104,0.00036728,35]
[401350908,1768150506627,-317.06202026,0.00036728,120]
[401350909,1768150506651,-259.01752523,0.00036728,30]
[401350910,1768150506677,-59556.14846601,0.00036728,30]
[401350911,1768150506703,-10028.42729752,0.00036728,30]
[401350912,1768150506728,-726.10160122,0.00036728,60]
[401350913,1768150506754,-15047.34868874,0.00036728,30]
[401350914,1768150506779,-227.41082097,0.00036728,30]
[401350915,1768150506806,-714.63679184,0.00036728,120]
[401350916,1768150506832,-139243.5866387,0.00036728,30]
[401350917,1768150506858,-300.82659014,0.00036728,60]
[401350918,1768150506884,-155.22819278,0.00036728,120]
[401350919,1768150506916,-725.82206259,0.00036728,60]
[401350920,1768150506941,-341.7664592,0.00036728,30]
[401350921,1768150506966,-161.71180942,0.00036728,60]
[401350922,1768150506990,-1308.63067057,0.00036728,30]
[401350923,1768150507015,-201.86968851,0.00036728,120]
[401350924,1768150507039,-288.0098402,0.00036728,120]
[401350925,1768150507063,-239.36353904,0.00036728,30]
[401350926,1768150507088,-847.50983292,0.00036728,120]
[401350927,1768150507113,-320.7896006,0.00036728,30]
[401350928,1768150507138,-226.67662627,0.00036728,120]
[401350929,1768150507161,-513.09116639,0.00036728,120]
[401350930,1768150507186,-351.6758948,0.00036728,30]
[401350931,1768150507211,-164.8157677,0.00036728,60]
[401350932,1768150507236,-155.22989407,0.00036728,31]
[401350933,1768150507264,-564.21209702,0.00036728,30]
[401350934,1768150507289,-572.92779242,0.00036728,30]
[401350935,1768150507315,-412.44261729,0.00036728,30]
[401350936,1768150507342,-1905837.56,0.00036728,120]
[401350937,1768150507368,-4281.314769,0.00036728,30]
[401350938,1768150507394,-3983.0,0.00036728,120]
[401350939,1768150507421,-2675.0,0.00036728,120]
[401350940,1768150507447,-9613.90252247,0.00036728,120]
[401350941,1768150507473,-834.79723914,0.00036728,120]
[401350942,1768150507499,-166.77456334,0.00036728,60]
[401350943,1768150507524,-1903.24812105,0.00036728,30]
[401350944,1768150507549,-154.26366429,0.00036728,30]
[401350945,1768150507575,-156.21359832,0.00036728,120]
[401350946,1768150507600,-6004.74815018,0.00036728,30]
[401350947,1768150507625,-455.91357254,0.00036728,30]
[401350948,1768150507650,-179.0,0.00036728,30]
[401350949,1768150507676,-20050.099999,0.00036728,120]
[401350950,1768150507701,-100000.0,0.00036728,60]
[401350951,1768150507726,-490.0,0.00036728,120]
[401350952,1768150507751,-6898.02642604,0.00036728,120]
[401350953,1768150507775,-451.0,0.00036728,120]
[401350954,1768150507800,-213.8041387,0.00036728,120]
[401350955,1768150507825,-154.85,0.00036728,120]
[401350956,1768150507851,-504358.26286513,0.00036728,30]
[401350957,1768150507876,-13666.33821374,0.00036728,60]
[401350958,1768150507903,-10000.00858661,0.00036728,30]
[401350959,1768150507931,-2566.23293048,0.00036728,120]
[401350960,1768150507962,-406.96317132,0.00036728,60]
[401350961,1768150507988,-295960.14041999,0.00036728,30]
[401350962,1768150508013,-19999.0,0.00036728,120]
[401350963,1768150508037,-246.67751097,0.00036728,60]
[401350964,1768150508063,-9587.31708401,0.00036728,120]
[401350965,1768150508088,-2014.83197146,0.00036728,30]
[401350966,1768150508116,-14068.56,0.00036728,120]
[401350967,1768150508142,-1000.0,0.00036728,30]
[401350968,1768150508169,-626.77103742,0.00036728,120]
[401350969,1768150508197,-94999.999999,0.00036728,30]
[401350970,1768150508224,-200000.0,0.00036728,30]
[401350971,1768150508250,-313.38551871,0.00036728,120]
[401350972,1768150508277,-478.95122684,0.00036728,120]
[401350973,1768150508306,-252.67633217,0.00036728,120]
[401350974,1768150508335,-252.67633217,0.00036728,120]
[401350975,1768150508363,-252.67633217,0.00036728,120]
[401350976,1768150508391,-252.67633217,0.00036728,120]
[401350977,1768150508420,-252.67633217,0.00036728,120]
[401350978,1768150508448,-252.67633217,0.00036728,120]
[401350979,1768150508477,-252.67633217,0.00036728,120]
[401350980,1768150508506,-252.67633217,0.00036728,120]
[401350981,1768150508534,-252.67633217,0.00036728,120]
[401350982,1768150508561,-252.67633217,0.00036728,120]
[401350983,1768150508589,-252.67633217,0.00036728,120]
[401350984,1768150508616,-252.67633217,0.00036728,120]
[401350985,1768150508643,-252.67633217,0.00036728,120]
[401350986,1768150508672,-252.67633217,0.00036728,120]
[401350987,1768150508699,-252.67633217,0.00036728,120]
[401350988,1768150508725,-2003.59029806,0.00036728,120]
[401350989,1768150508751,-369.8520427,0.00036728,120]
[401350990,1768150508781,-194.24590265,0.00036728,120]
[401350991,1768150508806,-369.8520427,0.00036728,120]
[401350992,1768150508830,-369.8520427,0.00036728,120]
[401350993,1768150508854,-369.8520427,0.00036728,120]
[401350994,1768150508879,-369.8520427,0.00036728,120]
[401350995,1768150509009,-369.8520427,0.00036728,120]
[401350996,1768150509042,-369.8520427,0.00036728,120]
[401350997,1768150509069,-369.8520427,0.00036728,120]
[401350998,1768150509094,-369.8520427,0.00036728,120]
[401350999,1768150509121,-369.8520427,0.00036728,120]
[401351000,1768150509148,-369.8520427,0.00036728,120]
[401351001,1768150509175,-369.8520427,0.00036728,120]
[401351002,1768150509200,-369.8520427,0.00036728,120]
[401351003,1768150509225,-369.8520427,0.00036728,120]
[401351004,1768150509250,-184.92602134,0.00036728,120]
[401351005,1768150509277,-194.24590264,0.00036728,120]
[401351006,1768150509303,-184.92602134,0.00036728,120]
[401351007,1768150509330,-192.30307881,0.00036728,120]
[401351008,1768150509356,-208.80640344,0.00036728,120]
[401351009,1768150509388,-177.31378459,0.00036728,120]
[401351010,1768150509415,-177.31378459,0.00036728,120]
[401351011,1768150509441,-177.31378458,0.00036728,120]
[401351012,1768150509468,-307.64147118,0.00036728,120]
[401351013,1768150509494,-288.4546182,0.00036728,120]
[401351014,1768150509520,-307.64147118,0.00036728,120]
[401351015,1768150509548,-307.64147118,0.00036728,120]
[401351016,1768150509574,-307.64147118,0.00036728,120]
[401351017,1768150509601,-307.64147118,0.00036728,120]
[401351018,1768150509628,-307.64147118,0.00036728,120]
[401351019,1768150509657,-307.64147118,0.00036728,120]
[401351020,1768150509683,-307.64147118,0.00036728,120]
[401351021,1768150509710,-307.64147118,0.00036728,120]
[401351022,1768150509737,-307.64147118,0.00036728,120]
[401351023,1768150509763,-307.64147118,0.00036728,120]
[401351024,1768150509788,-307.64147118,0.00036728,120]
[401351025,1768150509813,-307.64147118,0.00036728,120]
[401351026,1768150509839,-307.64147118,0.00036728,120]
[401351027,1768150509864,-307.64147118,0.00036728,120]
[401351028,1768150509891,-6105.83039596,0.00036728,120]
[401351029,1768150509920,-1000.0,0.00036728,30]
[401351030,1768150509945,-223.69322434,0.00036728,30]
[401351031,1768150509973,-150.1,0.00036728,40]
[401351032,1768150509998,-173.7590096,0.00036728,120]
[401351033,1768150510023,-173.7590096,0.00036728,120]
[401351034,1768150510048,-500.0,0.00036728,120]
[401351035,1768150510176,2450.33841038,0.00036728,30]
[401351036,1768150510205,19823.80509733,0.00036728,30]
[401351037,1768150510251,16862.95988363,0.00036728,30]
[401351038,1768150510509,182.81360973,0.00036728,120]
[401351039,1768150510559,244.69250895,0.00036728,120]
[401351040,1768150510634,244.69250895,0.00036728,120]
[401351041,1768150510804,244.69250895,0.00036728,120]
[401351042,1768150510965,734.0,0.00036728,30]
[401351043,1768150511574,204.0,0.00036728,30]
[401351044,1768150528492,-169.0,0.0002937,34]
[401351045,1768150528527,-500.0,0.0003167,120]
[401351046,1768150528555,-500.0,0.0003167,120]
[401351047,1768150528585,-500.0,0.0003167,120]
[401351048,1768150528612,-500.0,0.0003167,120]
[401351049,1768150528640,-500.0,0.0003167,120]
[401351050,1768150528668,-500.0,0.0003167,120]
[401351051,1768150528695,-500.0,0.0003167,120]
[401351052,1768150528720,-500.0,0.0003167,120]
[401351053,1768150528744,-500.0,0.0003167,120]
[401351054,1768150528769,-500.0,0.0003167,120]
[401351055,1768150528795,-500.0,0.0003167,120]
[401351056,1768150528820,-500.0,0.0003167,120]
[401351057,1768150528846,-500.0,0.0003167,120]
[401351058,1768150528874,-500.0,0.0003167,120]
[401351059,1768150528902,-500.0,0.0003167,120]
[401351060,1768150528928,-500.0,0.0003167,120]
[401351061,1768150528954,-500.0,0.0003167,120]
[401351062,1768150528979,-500.0,0.0003167,120]
[401351063,1768150529003,-500.0,0.0003167,120]